[Event "The Allsvenskan 2024/25 Div I 3: SS Manhem - Lidkopings SS"]
[Site "Goteborgs Schackcentrum, Vegatan 20, Gothenburg, Sweden"]
[Date "2025.03.16"]
[Round "1.6"]
[White "Karlsson, Stefan"]
[Black "Koski, Viljo"]
[Result "1-0"]
[TimeControl "90 minutes for 40 moves + 30 minutes for the rest of the game + 30 seconds per move from move one."]
[WhiteFideId "1771183"]
[BlackFideId "1717553"]
[WhiteElo "2030"]
[BlackElo "1913"]

1. e4 {[%clk 01:30:49]} {[%emt 00:00:10]} e5 {[%clk 01:30:12]} {[%emt
00:00:49]} 2. Nf3 {[%clk 01:31:02]} {[%emt 00:00:16]} Nc6 {[%clk 01:30:21]}
{[%emt 00:00:21]} 3. Bb5 {[%clk 01:31:18]} {[%emt 00:00:14]} Be7 {[%clk
01:28:41]} {[%emt 00:02:10]} 4. O-O {[%clk 01:29:00]} {[%emt 00:02:46]} Nf6
{[%clk 01:26:17]} {[%emt 00:02:56]} 5. Re1 {[%clk 01:22:51]} {[%emt 00:06:39]}
d6 {[%clk 01:23:48]} {[%emt 00:02:58]} 6. d4 {[%clk 01:18:21]} {[%emt
00:05:01]} exd4 {[%clk 01:10:29]} {[%emt 00:13:49]} 7. Nxd4 {[%clk 01:14:59]}
{[%emt 00:03:52]} Bd7 {[%clk 01:10:03]} {[%emt 00:00:57]} 8. Bxc6 {[%clk
01:10:43]} {[%emt 00:04:46]} bxc6 {[%clk 01:02:17]} {[%emt 00:08:16]} 9. Nc3
{[%clk 01:06:53]} {[%emt 00:04:19]} O-O {[%clk 01:00:52]} {[%emt 00:01:56]} 10.
Bf4 {[%clk 01:04:24]} {[%emt 00:02:58]} c5 {[%clk 00:57:33]} {[%emt 00:03:50]}
11. Nf3 {[%clk 00:57:33]} {[%emt 00:07:21]} Nh5 {[%clk 00:52:47]} {[%emt
00:05:18]} 12. Bd2 {[%clk 00:54:37]} {[%emt 00:03:25]} Nf6 {[%clk 00:35:40]}
{[%emt 00:17:37]} 13. e5 {[%clk 00:43:08]} {[%emt 00:11:59]} dxe5 {[%clk
00:27:30]} {[%emt 00:08:41]} 14. Nxe5 {[%clk 00:42:06]} {[%emt 00:01:30]} Bd6
{[%clk 00:27:16]} {[%emt 00:00:45]} 15. Bg5 {[%clk 00:39:20]} {[%emt 00:03:12]}
Be6 {[%clk 00:18:10]} {[%emt 00:09:39]} 16. Qf3 {[%clk 00:33:29]} {[%emt
00:06:18]} h6 {[%clk 00:08:02]} {[%emt 00:10:43]} 17. Nc6 {[%clk 00:24:47]}
{[%emt 00:09:10]} Qd7 {[%clk 00:03:10]} {[%emt 00:05:23]} 18. Bxf6 {[%clk
00:23:11]} {[%emt 00:02:05]} Bg4 {[%clk 00:02:04]} {[%emt 00:01:37]} 19. Qe4
{[%clk 00:15:40]} {[%emt 00:07:59]} Bf5 {[%clk 00:02:13]} {[%emt 00:00:22]} 20.
Ne7+ {[%clk 00:15:31]} {[%emt 00:00:39]} Bxe7 {[%clk 00:02:19]} {[%emt
00:00:25]} 21. Qxe7 {[%clk 00:15:52]} {[%emt 00:00:08]} gxf6 {[%clk 00:02:35]}
{[%emt 00:00:14]} 22. Qxf6 {[%clk 00:14:45]} {[%emt 00:01:38]} Bg6 {[%clk
00:02:47]} {[%emt 00:00:18]} 23. Rad1 {[%clk 00:11:47]} {[%emt 00:03:28]} Rfe8
{[%clk 00:02:55]} {[%emt 00:00:22]} 24. Re5 {[%clk 00:08:52]} {[%emt 00:03:21]}
Rxe5 {[%clk 00:02:01]} {[%emt 00:01:28]} 25. Qxe5 {[%clk 00:09:16]} {[%emt
00:00:06]} Re8 {[%clk 00:01:54]} {[%emt 00:00:37]} 26. Rxd7 {[%clk 00:07:12]}
{[%emt 00:02:35]} Rxe5 {[%clk 00:02:12]} {[%emt 00:00:12]} 27. Kf1 {[%clk
00:06:32]} {[%emt 00:01:09]} Bxc2 {[%clk 00:02:33]} {[%emt 00:00:10]} 28. f4
{[%clk 00:06:43]} {[%emt 00:00:17]} Rf5 {[%clk 00:01:51]} {[%emt 00:01:12]} 29.
Nd5 {[%clk 00:06:02]} {[%emt 00:01:12]} Kg7 {[%clk 00:01:28]} {[%emt 00:00:54]}
30. g4 {[%clk 00:06:12]} {[%emt 00:00:18]} 1-0

[Event "The Allsvenskan 2024/25 Div I 3: SS Manhem - Lidkopings SS"]
[Site "Goteborgs Schackcentrum, Vegatan 20, Gothenburg, Sweden"]
[Date "2025.03.16"]
[Round "1.7"]
[White "Stolt, Hans-Olof"]
[Black "Berggren Torell, Harald"]
[Result "1/2-1/2"]
[TimeControl "90 minutes for 40 moves + 30 minutes for the rest of the game + 30 seconds per move from move one."]
[WhiteFideId "1720368"]
[BlackFideId "1714031"]
[WhiteElo "1877"]
[BlackElo "2053"]

1. e4 {[%clk 01:30:57]} {[%emt 00:00:03]} g6 {[%clk 01:30:57]} {[%emt
00:00:03]} 2. d4 {[%clk 01:30:39]} {[%emt 00:00:48]} d6 {[%clk 01:30:48]}
{[%emt 00:00:41]} 3. Nc3 {[%clk 01:30:49]} {[%emt 00:00:20]} Bg7 {[%clk
01:31:08]} {[%emt 00:00:09]} 4. Bc4 {[%clk 01:27:26]} {[%emt 00:03:52]} Nc6
{[%clk 01:29:19]} {[%emt 00:02:21]} 5. Nge2 {[%clk 01:27:30]} {[%emt 00:00:24]}
Nf6 {[%clk 01:26:10]} {[%emt 00:03:40]} 6. O-O {[%clk 01:24:58]} {[%emt
00:03:02]} O-O {[%clk 01:23:27]} {[%emt 00:03:13]} 7. f3 {[%clk 01:16:49]}
{[%emt 00:08:38]} a6 {[%clk 01:07:27]} {[%emt 00:16:31]} 8. a4 {[%clk
01:15:22]} {[%emt 00:01:56]} Nd7 {[%clk 00:55:46]} {[%emt 00:12:12]} 9. Be3
{[%clk 01:10:54]} {[%emt 00:04:57]} Nb4 {[%clk 00:49:58]} {[%emt 00:06:19]} 10.
Qd2 {[%emt 00:11:08]} c5 {[%clk 00:48:35]} 11. Rfd1 {[%clk 00:49:10]} {[%emt
00:13:28]} Qc7 {[%clk 00:42:45]} {[%emt 00:06:21]} 12. dxc5 {[%clk 00:45:28]}
{[%emt 00:04:10]} dxc5 {[%clk 00:39:06]} {[%emt 00:04:09]} 13. Bf4 {[%clk
00:38:25]} {[%emt 00:07:33]} Ne5 {[%clk 00:36:44]} {[%emt 00:02:53]} 14. Qc1
{[%clk 00:26:56]} {[%emt 00:11:58]} e6 {[%clk 00:31:14]} {[%emt 00:06:01]} 15.
Ng3 {[%clk 00:21:24]} {[%emt 00:06:01]} b6 {[%clk 00:29:15]} {[%emt 00:02:30]}
16. Bf1 {[%clk 00:20:47]} {[%emt 00:01:06]} Bb7 {[%clk 00:28:46]} {[%emt
00:01:00]} 17. Rb1 {[%clk 00:18:13]} {[%emt 00:03:04]} Qc6 {[%clk 00:26:30]}
{[%emt 00:02:45]} 18. h4 {[%clk 00:15:07]} {[%emt 00:03:36]} Rad8 {[%clk
00:19:39]} {[%emt 00:07:22]} 19. h5 {[%clk 00:14:07]} {[%emt 00:01:29]} 1/2-1/2

[Event "The Allsvenskan 2024/25 Div I 3: SS Manhem - Lidkopings SS"]
[Site "Goteborgs Schackcentrum, Vegatan 20, Gothenburg, Sweden"]
[Date "2025.03.16"]
[Round "1.8"]
[White "Bengtsson, Jonas"]
[Black "Ivenholt, Niklas"]
[Result "1-0"]
[TimeControl "90 minutes for 40 moves + 30 minutes for the rest of the game + 30 seconds per move from move one."]
[WhiteFideId "1715135"]
[BlackFideId "1771426"]
[WhiteElo "2002"]
[BlackElo "1805"]

1. d4 {[%clk 01:30:53]} {[%emt 00:00:06]} Nf6 {[%clk 01:30:55]} {[%emt
00:00:06]} 2. c4 {[%clk 01:31:18]} {[%emt 00:00:04]} e5 {[%clk 01:31:21]}
{[%emt 00:00:05]} 3. dxe5 {[%clk 01:31:43]} {[%emt 00:00:05]} Ng4 {[%clk
01:31:48]} {[%emt 00:00:04]} 4. Bf4 {[%clk 01:32:08]} {[%emt 00:00:05]} Nc6
{[%clk 01:31:21]} {[%emt 00:00:56]} 5. Nf3 {[%clk 01:32:31]} {[%emt 00:00:06]}
Bb4+ {[%clk 01:30:52]} {[%emt 00:00:59]} 6. Nbd2 {[%clk 01:32:53]} {[%emt
00:00:08]} Qe7 {[%clk 01:29:59]} {[%emt 00:01:23]} 7. e3 {[%clk 01:33:16]}
{[%emt 00:00:08]} Ncxe5 {[%clk 01:29:36]} {[%emt 00:00:53]} 8. Nxe5 {[%clk
01:32:09]} {[%emt 00:01:37]} Nxe5 {[%clk 01:29:52]} {[%emt 00:00:14]} 9. Be2
{[%clk 01:32:33]} {[%emt 00:00:05]} O-O {[%clk 01:28:22]} {[%emt 00:02:01]} 10.
O-O {[%clk 01:32:57]} {[%emt 00:00:06]} d6 {[%clk 01:27:27]} {[%emt 00:01:25]}
11. Nb3 {[%clk 01:32:44]} {[%emt 00:00:42]} b6 {[%clk 01:26:20]} {[%emt
00:01:38]} 12. Nd4 {[%clk 01:21:58]} {[%emt 00:11:16]} Bb7 {[%clk 01:21:17]}
{[%emt 00:05:32]} 13. Nc2 {[%clk 01:19:55]} {[%emt 00:02:33]} a5 {[%clk
01:20:51]} {[%emt 00:00:56]} 14. Rc1 {[%clk 01:09:30]} {[%emt 00:10:56]} Bc5
{[%clk 01:15:28]} {[%emt 00:05:53]} 15. a3 {[%clk 01:05:45]} {[%emt 00:04:14]}
a4 {[%clk 01:12:15]} {[%emt 00:03:44]} 16. Nb4 {[%clk 01:06:07]} {[%emt
00:00:08]} g5 {[%clk 01:02:40]} {[%emt 00:10:05]} 17. Bxe5 {[%clk 00:53:01]}
{[%emt 00:13:35]} dxe5 {[%clk 01:02:03]} {[%emt 00:01:08]} 18. Nd5 {[%clk
00:53:13]} {[%emt 00:00:18]} Bxd5 {[%clk 01:01:20]} {[%emt 00:01:13]} 19. cxd5
{[%clk 00:51:48]} {[%emt 00:01:54]} f5 {[%clk 00:58:36]} {[%emt 00:03:16]} 20.
Kh1 {[%clk 00:45:52]} {[%emt 00:06:25]} e4 {[%clk 00:52:28]} {[%emt 00:06:38]}
21. Rc3 {[%clk 00:33:48]} {[%emt 00:12:33]} g4 {[%clk 00:46:20]} {[%emt
00:06:39]} 22. g3 {[%clk 00:31:16]} {[%emt 00:03:02]} Rf6 {[%clk 00:41:37]}
{[%emt 00:05:13]} 23. h4 {[%clk 00:29:40]} {[%emt 00:02:07]} gxh3 {[%clk
00:36:54]} {[%emt 00:05:13]} 24. Bb5 {[%clk 00:29:28]} {[%emt 00:00:41]} Kg7
{[%clk 00:33:57]} {[%emt 00:03:27]} 25. Bxa4 {[%clk 00:29:34]} {[%emt
00:00:24]} h5 {[%clk 00:34:05]} {[%emt 00:00:22]} 26. Bb5 {[%clk 00:24:50]}
{[%emt 00:05:14]} Rh8 {[%clk 00:30:54]} {[%emt 00:03:41]} 27. Rg1 {[%clk
00:21:52]} {[%emt 00:03:27]} Rg6 {[%clk 00:29:08]} {[%emt 00:02:16]} 28. f4
{[%clk 00:18:18]} {[%emt 00:04:04]} Kh6 {[%clk 00:18:19]} {[%emt 00:11:20]} 29.
Be2 {[%clk 00:17:27]} {[%emt 00:01:21]} Rhg8 {[%clk 00:18:04]} {[%emt
00:00:45]} 30. Kh2 {[%clk 00:17:31]} {[%emt 00:00:25]} Qg7 {[%clk 00:17:33]}
{[%emt 00:01:02]} 31. Qe1 {[%clk 00:09:51]} {[%emt 00:08:11]} Qf6 {[%clk
00:13:58]} {[%emt 00:04:04]} 32. Kxh3 {[%clk 00:07:42]} {[%emt 00:02:38]} Qg7
{[%clk 00:03:51]} {[%emt 00:10:38]} 33. Bd1 {[%clk 00:07:01]} {[%emt 00:01:11]}
h4 {[%clk 00:03:24]} {[%emt 00:00:57]} 34. Kxh4 {[%clk 00:05:56]} {[%emt
00:01:35]} Qf6+ {[%clk 00:01:58]} {[%emt 00:01:56]} 35. Kh3 {[%clk 00:06:19]}
{[%emt 00:00:07]} Kg7 {[%clk 00:02:13]} {[%emt 00:00:16]} 36. Kg2 {[%clk
00:04:15]} {[%emt 00:02:33]} Kf8 {[%clk 00:02:08]} {[%emt 00:00:36]} 37. Kf2
{[%clk 00:04:28]} {[%emt 00:00:17]} Rxg3 {[%clk 00:02:00]} {[%emt 00:00:37]} 38.
Rxg3 {[%clk 00:03:41]} {[%emt 00:01:16]} Qh4 {[%clk 00:02:24]} {[%emt
00:00:06]} 39. Qg1 {[%clk 00:03:46]} {[%emt 00:00:25]} Qxf4+ {[%clk 00:02:08]}
{[%emt 00:00:47]} 40. Bf3 {[%clk 00:03:00]} {[%emt 00:01:15]} Qh4 {[%clk
00:00:44]} {[%emt 00:01:55]} 41. Rxc5 {[%clk 00:28:41]} {[%emt 00:04:49]} bxc5
{[%clk 00:24:43]} {[%emt 00:06:31]} 42. Bxe4 {[%clk 00:24:47]} {[%emt
00:04:24]} fxe4 {[%clk 00:24:36]} {[%emt 00:00:37]} 43. Qg2 {[%emt 00:00:28]}
Ke7 {[%clk 00:22:31]} {[%emt 00:02:32]} 44. Qh3 {[%clk 00:24:22]} {[%emt
00:01:00]} Qf6+ {[%clk 00:22:19]} {[%emt 00:00:42]} 45. Ke1 {[%clk 00:22:53]}
{[%emt 00:01:58]} Rh8 {[%clk 00:22:15]} {[%emt 00:00:36]} 46. Qg2 {[%clk
00:23:05]} {[%emt 00:00:17]} Qh4 {[%clk 00:19:34]} {[%emt 00:03:11]} 47. Kd2
{[%clk 00:22:23]} {[%emt 00:01:12]} Kd6 {[%clk 00:17:23]} {[%emt 00:02:41]} 48.
Kc3 {[%clk 00:17:53]} {[%emt 00:04:59]} Kxd5 {[%clk 00:16:28]} {[%emt
00:01:25]} 49. Rg5+ {[%clk 00:17:42]} {[%emt 00:00:42]} Kc6 {[%clk 00:15:20]}
{[%emt 00:01:37]} 50. Kc4 {[%clk 00:17:49]} {[%emt 00:00:24]} Re8 {[%clk
00:08:06]} {[%emt 00:07:44]} 51. Rxc5+ {[%clk 00:18:05]} {[%emt 00:00:14]} Kb7
{[%clk 00:07:59]} {[%emt 00:00:37]} 52. Qg6 {[%clk 00:16:24]} {[%emt 00:02:12]}
Qe7 {[%clk 00:06:22]} {[%emt 00:02:06]} 53. Qc6+ {[%clk 00:10:24]} {[%emt
00:06:29]} 1-0